Cogmind - Beta 12 @@@ ROGUE MODE // 2023.03.29 @ 20:22:07 Player: Mr Goldstein Result: Destroyed by S-43 Plague with Heavy Machine Gun Performance ------------- Evolutions (8) 4000 Regions Visited (12) 2400 Robots Destroyed (89) 445 Value Destroyed (2309) 2309 Prototype IDs (9) 180 Alien Tech Used (1) 200 Bonus (46) 46 TOTAL SCORE: 9580 Bonus ------- High Alert Combat Kills 219 Friendly Fire -173 Cogmind --------- Core Integrity 0/1450 Matter 70/300 Energy 100/100 System Corruption 0% Temperature Cool (0) Movement Core (100) Ox1 Location -2/Research Parts ------- > --- POWER (2) -------- (None) > --- PROPULSION (8) --- (None) > --- UTILITY (11) ----- (None) > --- WEAPON (2) ------- Force Lance > --- INVENTORY (5) ---- Centrium Wheel Peak State ------------ > --- POWER ------------ Light Particle Reactor > --- PROPULSION ------- Improved Flight Unit Improved Flight Unit Q-thruster Impulse Thruster Array Experimental Q-thruster > --- UTILITY ---------- Improved Trap Scanner Enhanced Optical Array Improved Sensor Array Improved Signal Interpreter Long-range Terrain Scanner Improved Light Armor Plating Thermal Shield Hacking Suite Hacking Suite Improved Hacking Suite > --- WEAPON ----------- Sigix Broadsword > --- INVENTORY -------- Centrium Wheel Force Lance [Rating: 119] Favorites ----------- Power Improved Deuterium Engine Engine Improved Deuterium Engine Power Core Fission Core Reactor Light Particle Reactor Propulsion Improved Flight Unit Leg Aluminum Leg Wheel Wheel Hover Unit Aerolev Unit Flight Unit Improved Flight Unit Utility Hacking Suite Device Improved Sensor Array Storage Small Storage Unit Processor Improved Signal Interpreter Hackware Hacking Suite Protection Improved Light Armor Plating Weapon High-powered Shotgun Energy Gun Medium Laser Ballistic Gun High-powered Shotgun Launcher Grenade Launcher Slashing Weapon Sigix Broadsword Piercing Weapon Force Lance Build | -11 -10 -9 -8 -7 -6 -6 -6 -5 -4 -3 -3 -2 ------- Run | Jun Mat Mat Mat Fac Fac Was Fac Fac Fac Res Qua Res Slots Evolved 16 | . . 2 2 2 2 . . 2 2 2 . 2 Power 1 | . . . . . . . . 1 . . . . Propulsion 6 | . . 1 1 1 . . . . 1 1 . 1 Utility 9 | . . 1 1 1 2 . . 1 1 1 . 1 Weapon . | . . . . . . . . . . . . . Parts Attached 129 | 9 7 39 27 12 3 1 2 3 3 11 2 10 Power 16 | 2 . 3 3 1 . 1 . 1 1 2 1 1 Engine 10 | 2 . 3 1 1 . 1 . . . 2 . . Core 4 | . . . 2 . . . . 1 1 . . . Reactor 2 | . . . . . . . . . . . 1 1 Propulsion 48 | 4 2 19 8 6 1 . 1 1 1 4 . 1 Treads . | . . . . . . . . . . . . . Leg 2 | 2 . . . . . . . . . . . . Wheel 28 | 2 2 16 7 . . . . . . 1 . . Hover 3 | . . 3 . . . . . . . . . . Flight 15 | . . . 1 6 1 . 1 1 1 3 . 1 Utility 28 | 1 4 3 3 5 2 . 1 1 1 4 1 2 Device 12 | . 2 2 1 1 . . . . 1 3 1 1 Storage 4 | 1 2 . . 1 . . . . . . . . Processor 5 | . . 1 . 1 1 . 1 . . 1 . . Hackware 4 | . . . . 2 1 . . 1 . . . . Protection 3 | . . . 2 . . . . . . . . 1 Artifact . | . . . . . . . . . . . . . Weapon 37 | 2 1 14 13 . . . . . . 1 . 6 Energy Gun 5 | . . 2 3 . . . . . . . . . Energy Cannon . | . . . . . . . . . . . . . Ballistic Gun 19 | 2 . 10 7 . . . . . . . . . Ballistic Cannon . | . . . . . . . . . . . . . Launcher 6 | . 1 2 3 . . . . . . . . . Special Weapon . | . . . . . . . . . . . . . Impact Weapon . | . . . . . . . . . . . . . Slashing Weapon 2 | . . . . . . . . . . . . 2 Piercing Weapon 5 | . . . . . . . . . . 1 . 4 Special Melee Weapon . | . . . . . . . . . . . . . Unidentified Prototypes 5 | . . 1 1 . . . . . . 1 . 2 Parts Lost 41 | . 1 8 15 . 1 . . . 4 5 1 6 Power 6 | . . 2 3 . . . . . . . . 1 Propulsion 17 | . 1 4 5 . 1 . . . 1 2 1 2 Utility 8 | . . . 2 . . . . . 1 3 . 2 Weapon 10 | . . 2 5 . . . . . 2 . . 1 Highest Loss Streak 9 | . 1 4 9 . 1 . . . 4 4 1 6 To Critical Strikes . | . . . . . . . . . . . . . Average Slot Usage (%) 93 | . 95 98 89 95 99 100 100 95 93 89 80 51 Engine 7 | . 14 10 5 4 6 6 6 5 . 2 . . Core 1 | . . . 2 2 . . . 1 5 4 4 2 Wheel 16 | . 26 31 31 . . . . . . . . . Flight 14 | . . . . 35 32 33 33 29 31 30 28 15 Device 9 | . 11 11 8 6 6 6 6 5 10 13 14 12 Storage 8 | . 14 11 9 7 6 6 6 5 5 3 . . Processor 9 | . . 11 9 6 13 13 13 11 10 8 9 5 Hackware 8 | . . . . 14 20 20 20 23 21 18 14 9 Protection 1 | . . . 5 . . . . . . . . 1 Energy Gun 1 | . . . 6 . . . . . . . . . Ballistic Gun 14 | . 27 20 10 15 13 13 13 11 9 . . . Naked Turns 40 | . . . . . . . . . . . . 40 Heaviest Build 37 | 13 31 32 35 22 22 22 22 22 24 37 36 34 Greatest Support 46 | 20 20 36 46 25 25 24 25 26 31 46 46 46 Greatest Overweight (x) 8 | . 1 3 8 . . . . 7 . . . . Average Overweight (x) . | . . . . . . . . . . . . . Largest Inventory Capacity 15 | 8 15 15 15 15 8 8 8 8 8 8 5 5 Average Capacity 11 | 7 10 15 15 8 8 8 8 8 8 7 5 5 Most Carried 15 | 5 10 15 15 15 8 8 8 7 8 8 5 5 Average Carried 9 | 1 7 13 14 5 6 7 7 6 7 6 4 3 Final Capacity 15 | 8 15 15 15 8 8 8 8 8 8 5 5 5 Final Carried 15 | 2 10 15 15 7 8 7 8 7 8 5 5 1 Class Distribution -------------------- 42% | Hacker-Scout 27% | Mutant 26% | Scavenger-Mutant Dominant Class ---------------- Mutant | -10/Materials Scavenger-Mutant | -9/Materials Mutant | -8/Materials Hacker-Sprinter | -7/Factory Hacker-Scout | -6/Factory Hacker-Scout | -6/Waste Hacker-Scout | -6/Factory Hacker-Scout | -5/Factory Hacker-Scout | -4/Factory Hacker-Scout | -3/Research Hacker-Scout | -3/Quarantine Hacker-Scout | -2/Research Resources | -11 -10 -9 -8 -7 -6 -6 -6 -5 -4 -3 -3 -2 ----------- Run | Jun Mat Mat Mat Fac Fac Was Fac Fac Fac Res Qua Res Matter Collected 2410 | 223 266 810 729 . 96 . 83 . . 68 . 135 Remotely . | . . . . . . . . . . . . . Salvage Created 3061 | . 321 1175 1252 . 48 . 114 . . 68 . 83 Parts 195 | . 20 72 83 . 4 . 7 . . 5 . 4 Haulers Intercepted 9 | . 1 3 4 . . . 1 . . . . . Recyclers Shooed 2 | . 1 . 1 . . . . . . . . . Parts Field Recycled . | . . . . . . . . . . . . . Retrieved Matter . | . . . . . . . . . . . . . Parts Self-Destructed . | . . . . . . . . . . . . . Prevented . | . . . . . . . . . . . . . Kills | -11 -10 -9 -8 -7 -6 -6 -6 -5 -4 -3 -3 -2 ------- Run | Jun Mat Mat Mat Fac Fac Was Fac Fac Fac Res Qua Res Combat Hostiles Destroyed 56 | . 5 20 26 . 3 . . . . . . 2 Melee 2 | . . . . . . . . . . . . 2 Guns 41 | . 5 17 16 . 3 . . . . . . . AOE 11 | . . 2 9 . . . . . . . . . Classes Destroyed 13 | . 6 4 2 . . . . . . . . 1 Worker 7 | . 2 2 2 . . . . . . 1 . . Builder 3 | . . 1 2 . . . . . . . . . Tunneler 2 | . . 1 . . . . . . . 1 . . Hauler 9 | . 1 3 4 . . . 1 . . . . . Recycler 3 | . 1 1 1 . . . . . . . . . Operator 4 | . 1 1 1 . . . . . . 1 . . Watcher 5 | . . 1 2 . . . 2 . . . . . Swarmer 14 | . 2 3 6 . 3 . . . . . . . Cutter 2 | . . . . . . . . . . . . 2 Grunt 27 | . 3 13 11 . . . . . . . . . Duelist 2 | . . . 2 . . . . . . . . . Sentry 10 | . . 4 6 . . . . . . . . . Hunter 1 | . . . 1 . . . . . . . . . Best Kill Streak 7 | . 2 6 7 . 3 . 1 . . 1 . 2 Combat Bots Only 5 | . 2 4 5 . 3 . . . . . . 2 Max Kills in Single Turn 2 | . 1 2 2 . 1 . 1 . . 1 . 1 Gunslinging . | . . . . . . . . . . . . . Exploded 2 | . . 1 2 . . . . . . . . . Melee 1 | . . . . . . . . . . . . 1 Uniques/NPCs Destroyed . | . . . . . . . . . . . . . Combat | -11 -10 -9 -8 -7 -6 -6 -6 -5 -4 -3 -3 -2 -------- Run | Jun Mat Mat Mat Fac Fac Was Fac Fac Fac Res Qua Res Damage Taken 6343 | . 297 856 1784 . 359 . 42 . 325 484 110 2086 Core 2313 | . 115 142 288 . 130 . . . 38 95 45 1460 Absorbed by Shields 105 | . . 105 . . . . . . . . . . Regen/Repaired (Parts) 22 | . . . . . . . . . . . . 22 Core Remaining (%) 81 | 100 54 64 47 100 . . 84 100 96 . 89 . Volleys Fired 249 | . 38 89 105 . 9 . 8 . . . . . Largest 2 | . 2 2 2 . 2 . 2 . . . . . Hottest 115 | . 50 115 113 . 50 . 50 . . . . . Shots Fired 495 | . 76 177 206 . 18 . 18 . . . . . Gun 484 | . 74 174 200 . 18 . 18 . . . . . Cannon . | . . . . . . . . . . . . . Launcher 11 | . 2 3 6 . . . . . . . . . Special . | . . . . . . . . . . . . . Kinetic 408 | . 74 154 144 . 18 . 18 . . . . . Thermal 76 | . . 20 56 . . . . . . . . . Explosive 11 | . 2 3 6 . . . . . . . . . Electromagnetic . | . . . . . . . . . . . . . Robot Hit Streak 34 | . 12 34 14 . 4 . 4 . . . . . Robot Miss Streak 6 | . 4 6 4 . 6 . 4 . . . . . Penetration Max . | . . . . . . . . . . . . . Secondary Targets 4 | . 1 1 1 . 1 . . . . . . . Max Gunslinging Chain 1 | . 1 1 1 . 1 . . . . . . . Shots Hit Robots 355 | . 43 133 142 . 13 . 12 . . 6 . 6 Core Hits 156 | . 17 49 72 . 5 . 7 . . 3 . 3 Critical Kills 5 | . . 1 3 . 1 . . . . . . . Critical Parts Destroyed . | . . . . . . . . . . . . . Critical Strikes 10 | . . 4 4 . 1 . . . . . . 1 Burn 4 | . . 3 1 . . . . . . . . . Destroy 5 | . . 1 3 . 1 . . . . . . . Impale 1 | . . . . . . . . . . . . 1 Melee Attacks 22 | . . . . . . . . . . 7 1 14 Impact . | . . . . . . . . . . . . . Slashing 4 | . . . . . . . . . . . . 4 Piercing 18 | . . . . . . . . . . 7 1 10 Sneak Attacks 5 | . . . . . . . . . . 5 . . Combat Hostiles . | . . . . . . . . . . . . . Follow-up Attacks . | . . . . . . . . . . . . . Damage Inflicted 6190 | . 458 2053 2732 . 160 . 172 . . 418 . 197 Guns 4844 | . 458 1859 2195 . 160 . 172 . . . . . Cannons . | . . . . . . . . . . . . . Explosions 731 | . . 194 537 . . . . . . . . . Melee 615 | . . . . . . . . . . 418 . 197 Ramming . | . . . . . . . . . . . . . Kinetic 3981 | . 458 1612 1579 . 160 . 172 . . . . . Thermal 863 | . . 247 616 . . . . . . . . . Explosive 731 | . . 194 537 . . . . . . . . . Electromagnetic . | . . . . . . . . . . . . . Impact . | . . . . . . . . . . . . . Slashing . | . . . . . . . . . . . . . Piercing 615 | . . . . . . . . . . 418 . 197 Highest Corruption 9 | . . . 1 . . 9 9 . 1 1 1 . Average Corruption 5 | . . . 1 . . 9 9 . 1 1 1 . Corruption Purged . | . . . . . . . . . . . . . Corruption Blocked . | . . . . . . . . . . . . . Effects 27 | . . . 4 . . 2 20 . . 1 . . Message Errors 5 | . . . 1 . . . 4 . . . . . Matter Fused 4 | . . . 1 . . . 2 . . 1 . . Heat Flow Errors 5 | . . . 1 . . . 4 . . . . . Energy Discharges 2 | . . . . . . . 2 . . . . . Parts Rejected 1 | . . . . . . 1 . . . . . . Data Loss (minor) 5 | . . . . . . . 5 . . . . . Misfires 3 | . . . 1 . . . 2 . . . . . Alerts 2 | . . . . . . 1 1 . . . . . Overload Shots . | . . . . . . . . . . . . . Overflow Damage 165 | . . 22 51 . . . . . . 80 . 12 Projectiles . | . . . . . . . . . . . . . Explosions 73 | . . 22 51 . . . . . . . . . Melee 92 | . . . . . . . . . . 80 . 12 Knockbacks . | . . . . . . . . . . . . . Impact . | . . . . . . . . . . . . . Kinetic . | . . . . . . . . . . . . . Secondary . | . . . . . . . . . . . . . Self-Inflicted Damage 168 | . 6 14 148 . . . . . . . . . Shots 7 | . 1 1 5 . . . . . . . . . Rammed . | . . . . . . . . . . . . . Targets Rammed . | . . . . . . . . . . . . . Kicked . | . . . . . . . . . . . . . Crushed . | . . . . . . . . . . . . . Highest Temperature 406 | . 17 129 180 . 2 . 292 . 32 406 . 11 Average Temperature 70 | . 11 42 29 . 2 . 138 . 4 76 . 4 Received Heat Transfer 1575 | . 156 402 810 . 12 . . . 63 60 18 54 Effects 3 | . . . . . . . 1 . . 2 . . Shutdowns 1 | . . . . . . . . . . 1 . . Energy Bleed 2 | . . . . . . . 1 . . 1 . . Siege Activations . | . . . . . . . . . . . . . Robots Corrupted . | . . . . . . . . . . . . . Combat Hostiles . | . . . . . . . . . . . . . Parts Fried . | . . . . . . . . . . . . . Impact Corruptions . | . . . . . . . . . . . . . Robots Melted 2 | . . 1 1 . . . . . . . . . Combat Hostiles 2 | . . 1 1 . . . . . . . . . Parts Melted 7 | . . 4 3 . . . . . . . . . Heat Transferred 2479 | . . 851 1628 . . . . . . . . . Parts Sabotaged . | . . . . . . . . . . . . . Parts Stolen . | . . . . . . . . . . . . . Parts Stripped . | . . . . . . . . . . . . . Power Chain Reactions . | . . . . . . . . . . . . . Missiles Intercepted . | . . . . . . . . . . . . . Alert | -11 -10 -9 -8 -7 -6 -6 -6 -5 -4 -3 -3 -2 ------- Run | Jun Mat Mat Mat Fac Fac Was Fac Fac Fac Res Qua Res Peak Influence 712 | . 205 543 712 372 196 34 134 . 104 207 57 222 Initial 312 | . . 15 192 312 182 24 23 . 7 38 6 31 Average 208 | . 92 283 473 335 83 19 62 . 45 62 34 110 Maximum Alert Level 3 | . 1 2 3 1 . . . . . 1 . 1 Low Security (%) 63 | 100 92 41 1 . 100 100 100 100 100 99 100 97 Level 1 14 | . 7 15 36 100 . . . . . . . 2 Level 2 22 | . . 43 60 . . . . . . . . . Level 3 . | . . . 1 . . . . . . . . . Level 4 . | . . . . . . . . . . . . . Level 5 . | . . . . . . . . . . . . . High Security . | . . . . . . . . . . . . . Max Security . | . . . . . . . . . . . . . Squads Dispatched 20 | . 3 1 6 . 1 . 1 . 2 2 1 3 Investigation 4 | . 1 . 1 . . . . . 1 . . 1 Extermination 2 | . . . . . 1 . . . . 1 . . Reinforcement 11 | . 2 1 2 . . . 1 . 1 1 1 2 Assault . | . . . . . . . . . . . . . Garrison 3 | . . . 3 . . . . . . . . . Intercept . | . . . . . . . . . . . . . Searches Triggered . | . . . . . . . . . . . . . Construction Impeded . | . . . . . . . . . . . . . Haulers Reinforced 1 | . . . . . . . 1 . . . . . Active Scanning Responses . | . . . . . . . . . . . . . Cargo Convoy Interrupts . | . . . . . . . . . . . . . Stealth | -11 -10 -9 -8 -7 -6 -6 -6 -5 -4 -3 -3 -2 --------- Run | Jun Mat Mat Mat Fac Fac Was Fac Fac Fac Res Qua Res Distress Signals 12 | . 3 3 3 . . . . . . 1 1 1 Communications Jammed . | . . . . . . . . . . . . . Distress Signals . | . . . . . . . . . . . . . Times Spotted 193 | . 11 47 48 1 4 6 7 1 24 19 8 17 Peak Tracking Total 21 | . 4 7 7 1 3 6 3 . 21 16 7 14 Tactical Retreats 27 | . 2 8 7 1 . . 2 . 1 2 . 4 Traps | -11 -10 -9 -8 -7 -6 -6 -6 -5 -4 -3 -3 -2 ------- Run | Jun Mat Mat Mat Fac Fac Was Fac Fac Fac Res Qua Res Traps Triggered 12 | . 2 1 2 1 2 . 1 . 2 . . 1 Indirectly . | . . . . . . . . . . . . . Trap Hack Attempts . | . . . . . . . . . . . . . Triggered . | . . . . . . . . . . . . . Disarmed . | . . . . . . . . . . . . . Reprogrammed . | . . . . . . . . . . . . . Reused . | . . . . . . . . . . . . . Traps Extracted . | . . . . . . . . . . . . . Installed . | . . . . . . . . . . . . . Triggered . | . . . . . . . . . . . . . Machines | -11 -10 -9 -8 -7 -6 -6 -6 -5 -4 -3 -3 -2 ---------- Run | Jun Mat Mat Mat Fac Fac Was Fac Fac Fac Res Qua Res Machines Disabled 3 | . . 1 1 . . . . . . . 1 . Max in Single Turn 1 | . . 1 1 . . . . . . . 1 . Garrison Access 1 | . . . . . 1 . . . . . . . Machines Repaired . | . . . . . . . . . . . . . Machines Sabotaged . | . . . . . . . . . . . . . Overloaded Fab Kills . | . . . . . . . . . . . . . Hacking | -11 -10 -9 -8 -7 -6 -6 -6 -5 -4 -3 -3 -2 --------- Run | Jun Mat Mat Mat Fac Fac Was Fac Fac Fac Res Qua Res Machines Accessed 50 | . 6 10 6 3 5 . 4 1 3 5 3 4 Terminals 38 | . 5 9 5 2 2 . 4 . 3 2 2 4 Fabricators 1 | . . . . . 1 . . . . . . . Repair Stations . | . . . . . . . . . . . . . Recycling Units 5 | . 1 . 1 1 1 . . . . 1 . . Scanalyzers 3 | . . 1 . . . . . . . 1 1 . Garrison Access 3 | . . . . . 1 . . 1 . 1 . . Total Hacks 108 | . 17 25 14 6 8 . 6 2 8 9 6 7 Successful 49 | . 8 10 5 1 4 . 1 1 4 6 4 5 Failed 59 | . 9 15 9 5 4 . 5 1 4 3 2 2 Catastrophic 11 | . 1 4 4 . . . 1 . . . . 1 Database Lockouts . | . . . . . . . . . . . . . Manual 77 | . 11 20 15 4 5 . 5 . 6 3 5 3 Terminals 89 | . 15 23 13 4 4 . 6 . 8 4 5 7 Fabricators 1 | . . . . . 1 . . . . . . . Repair Stations . | . . . . . . . . . . . . . Recycling Units 8 | . 2 . 1 2 1 . . . . 2 . . Scanalyzers 4 | . . 2 . . . . . . . 1 1 . Garrison Access 6 | . . . . . 2 . . 2 . 2 . . Terminal Hacks 31 | . 5 5 3 1 1 . 1 . 4 3 3 5 Record 6 | . . 1 . 1 . . . . . 2 1 1 Robot Analysis 2 | . . . . . . . . . 1 . . 1 Prototype ID Bank 2 | . 1 1 . . . . . . . . . . Level Access Points 2 | . . . . . . . . . 1 . 1 . Branch Access Points 5 | . . 1 . . . . . . 1 1 1 1 Emergency Access Points 1 | . . . . . . . . . . . . 1 Terminal Index 7 | . 1 1 1 . 1 . 1 . 1 . . 1 Alert Level 1 | . 1 . . . . . . . . . . . Locate Traps 1 | . 1 . . . . . . . . . . . Recall Investigation 1 | . . . 1 . . . . . . . . . Hauler Manifests 2 | . . 1 1 . . . . . . . . . Registered Components 1 | . 1 . . . . . . . . . . . Fabricator Hacks . | . . . . . . . . . . . . . Repair Station Hacks . | . . . . . . . . . . . . . Recycling Unit Hacks 3 | . 1 . . . 1 . . . . 1 . . Report Inventory 3 | . 1 . . . 1 . . . . 1 . . Scanalyzer 2 | . . 2 . . . . . . . . . . Insert Component 1 | . . 1 . . . . . . . . . . Analyze 1 | . . 1 . . . . . . . . . . Garrison Access Hacks 2 | . . . . . 1 . . 1 . . . . Seal Access 1 | . . . . . 1 . . . . . . . Coupler Status 1 | . . . . . . . . 1 . . . . Unauthorized Hacks 11 | . 2 3 2 . 1 . . . . 2 1 . Terminals 7 | . 2 3 1 . . . . . . 1 . . Assimilate 1 | . . . . . . . . . . 1 . . Botnet 3 | . 1 2 . . . . . . . . . . Operators 3 | . 1 1 1 . . . . . . . . . Fabricators 1 | . . . . . 1 . . . . . . . Liberate 1 | . . . . . 1 . . . . . . . Repair Stations . | . . . . . . . . . . . . . Recycling Units 1 | . . . 1 . . . . . . . . . Mask 1 | . . . 1 . . . . . . . . . Scanalyzers 2 | . . . . . . . . . . 1 1 . Researchers 2 | . . . . . . . . . . 1 1 . Garrison Access . | . . . . . . . . . . . . . Data Cores Recovered . | . . . . . . . . . . . . . Used . | . . . . . . . . . . . . . Hacking Detections 43 | . 6 8 3 3 3 . 4 1 3 5 3 4 Full Trace Events 1 | . 1 . . . . . . . . . . . Feedback Events . | . . . . . . . . . . . . . Feedback Blocked . | . . . . . . . . . . . . . Robot Schematics Acquired . | . . . . . . . . . . . . . Robots Built . | . . . . . . . . . . . . . Authchips . | . . . . . . . . . . . . . Time . | . . . . . . . . . . . . . Total Robot Build Rating . | . . . . . . . . . . . . . Part Schematics Acquired 1 | . . 1 . . . . . . . . . . Parts Built . | . . . . . . . . . . . . . Authchips . | . . . . . . . . . . . . . Time . | . . . . . . . . . . . . . Total Part Build Rating . | . . . . . . . . . . . . . Parts Repaired . | . . . . . . . . . . . . . Time . | . . . . . . . . . . . . . Parts Recycled . | . . . . . . . . . . . . . Recycled Matter . | . . . . . . . . . . . . . Retrieved Matter . | . . . . . . . . . . . . . Retrieved Components . | . . . . . . . . . . . . . Parts Scanalyzed 1 | . . 1 . . . . . . . . . . Part Schematics Acquired 1 | . . 1 . . . . . . . . . . Parts Damaged . | . . . . . . . . . . . . . Bothacking | -11 -10 -9 -8 -7 -6 -6 -6 -5 -4 -3 -3 -2 ------------ Run | Jun Mat Mat Mat Fac Fac Was Fac Fac Fac Res Qua Res Used RIF Installer . | . . . . . . . . . . . . . Robots Hacked . | . . . . . . . . . . . . . Non-combat . | . . . . . . . . . . . . . Combat . | . . . . . . . . . . . . . Robot Hacks Applied . | . . . . . . . . . . . . . Relay Couplers Released . | . . . . . . . . . . . . . Fabnet Peak Effective % . | . . . . . . . . . . . . . Robots Rewired 1 | . . . . . . . . 1 . . . . Allies Hacked . | . . . . . . . . . . . . . Hacks Repelled . | . . . . . . . . . . . . . Allies | -11 -10 -9 -8 -7 -6 -6 -6 -5 -4 -3 -3 -2 -------- Run | Jun Mat Mat Mat Fac Fac Was Fac Fac Fac Res Qua Res Total Allies 3 | . . . . . . 1 . 1 . 1 . . Largest Group 1 | . . . . . . 1 . 1 . 1 . . Highest-Rated Group 45 | . . . . . . 31 . 29 . 45 . . Highest-Rated Ally 45 | . . . . . . 31 . 29 . 45 . . Total Orders 3 | . . . . . . . . 2 . 1 . . STAY 2 | . . . . . . . . 1 . 1 . . AID 1 | . . . . . . . . 1 . . . . Ally Attacks 2 | . . . . . . 2 . . . . . . Total Damage 43 | . . . . . . 43 . . . . . . Kills . | . . . . . . . . . . . . . Allies Corrupted . | . . . . . . . . . . . . . Allies Melted . | . . . . . . . . . . . . . Intel | -11 -10 -9 -8 -7 -6 -6 -6 -5 -4 -3 -3 -2 ------- Run | Jun Mat Mat Mat Fac Fac Was Fac Fac Fac Res Qua Res Robot Analysis Total 2 | . . . . . . . . . 1 . . 1 Derelict Logs Recovered . | . . . . . . . . . . . . . Drone Launches . | . . . . . . . . . . . . . Drone Recoveries . | . . . . . . . . . . . . . Exploration | -11 -10 -9 -8 -7 -6 -6 -6 -5 -4 -3 -3 -2 ------------- Run | Jun Mat Mat Mat Fac Fac Was Fac Fac Fac Res Qua Res Turns Passed 6509 | 68 623 1404 1369 149 1108 70 656 33 331 418 39 241 Spaces Moved 7424 | 55 522 970 893 447 833 198 981 70 901 946 125 483 Core 73 | 8 . . 6 . . . . 1 . . . 58 Treads . | . . . . . . . . . . . . . Legs 12 | 12 . . . . . . . . . . . . Wheels 2411 | 35 522 967 887 . . . . . . . . . Hover 3 | . . 3 . . . . . . . . . . Flight 4925 | . . . . 447 833 198 981 69 901 946 125 425 Fastest Speed 20 | 50 80 42 80 27 27 27 27 27 24 20 25 21 Average Speed 46 | 84 85 90 88 27 27 27 27 32 24 22 25 29 Slowest Speed 450 | 120 95 240 450 27 27 27 27 400 27 27 28 50 Overloaded Moves . | . . . . . . . . . . . . . Propulsion Burnouts . | . . . . . . . . . . . . . Robots Hopped 56 | . . . . 4 10 . 4 4 24 7 1 2 Cave-ins Triggered . | . . . . . . . . . . . . . Exploration Rate (%) 31 | 3 76 55 56 12 13 78 28 3 23 26 21 14 Regions Visited 12 Branch Regions 1 Pre-discovered Areas . | . . . . . . . . . . . . . Known Exits Taken 6 | . . . . 1 . . 1 1 1 1 1 . Unknown Exits Taken 4 | 1 1 1 1 . . . . . . . . . Scrap Searched . | . . . . . . . . . . . . . Spaces Dug 30 | . 7 16 7 . . . . . . . . . Terrain Destroyed 72 | . 18 19 35 . . . . . . . . . Melee . | . . . . . . . . . . . . . Projectile . | . . . . . . . . . . . . . AOE 72 | . 18 19 35 . . . . . . . . . Terrain Rammed . | . . . . . . . . . . . . . Walls Destroyed . | . . . . . . . . . . . . . Machines Disabled . | . . . . . . . . . . . . . Actions | -11 -10 -9 -8 -7 -6 -6 -6 -5 -4 -3 -3 -2 --------- Run | Jun Mat Mat Mat Fac Fac Was Fac Fac Fac Res Qua Res Total 9885 | 75 628 1321 1259 474 1688 215 1352 75 991 1126 131 550 Wait 1954 | . 46 176 210 7 848 13 358 . 93 164 . 39 Move 7304 | 54 521 969 892 438 814 197 972 62 853 931 122 479 Hop 53 | . . . . 4 9 . 4 3 23 7 1 2 Pick Up 99 | 10 13 29 20 4 4 2 4 . 4 4 1 4 Fast Attach 12 | . . 5 2 . 1 . 1 . . 1 . 2 Attach 75 | 6 4 14 15 10 2 1 . 2 3 9 1 8 Detach 7 | . . 1 . . . . . 1 1 2 1 1 Swap 42 | 3 3 20 10 2 . . 1 1 . 1 1 . Drop 49 | 2 3 18 5 9 1 2 4 . 1 . 3 1 Fire 249 | . 38 89 105 . 9 . 8 . . . . . Melee 22 | . . . . . . . . . . 7 1 14 Ram . | . . . . . . . . . . . . . Kick . | . . . . . . . . . . . . . Crush . | . . . . . . . . . . . . . Escape Stasis 13 | . . . . . . . . . 13 . . . Rewire 6 | . . . . . . . . 6 . . . . Trap . | . . . . . . . . . . . . . Miscellaneous . | . . . . . . . . . . . . . Route ------- -11/Junkyard -10/Materials (discovered 3 exits: *Mat x2 / [*Min]) -9/Materials (discovered 4 exits: *Mat / *Min x2 / *Sto) -8/Materials -7/Factory -6/Factory -6/Waste -6/Factory -5/Factory -4/Factory (discovered 8 exits: *Res x4 / Upp x2 / Ext x2) -3/Research (discovered 3 exits: Arm / *Qua x2) -3/Quarantine -2/Research (discovered 2 exits: Tes x2) History --------- Turn | Location | Event 18 | -11/Junkyard | Discovered new exit (range 15) 69 | -11/Junkyard | Entered Materials 299 | -10/Materials | Discovered new exit (range 10) 315 | -10/Materials | Build established: Mutant 511 | -10/Materials | Discovered new exit (range 13) 630 | -10/Materials | Discovered new exit (range 15) 692 | -10/Materials | Entered another Materials area 692 | -9/Materials | Evolved 2 slots: Propulsion x1, Utility x1 733 | -9/Materials | Discovered new exit (range 8) 984 | -9/Materials | Build established: Scavenger-Mutant 1160 | -9/Materials | Discovered new exit (range 14) 1388 | -9/Materials | Lost 4 parts (3n1w) 1655 | -9/Materials | Identified exit to Mines 1655 | -9/Materials | Identified exit to Storage 1719 | -9/Materials | Discovered new exit (range 4) 2096 | -9/Materials | Entered another Materials area 2096 | -8/Materials | Evolved 2 slots: Propulsion x1, Utility x1 2331 | -8/Materials | Build established: Mutant 2396 | -8/Materials | Lost 3 parts (1n1u1w) 2845 | -8/Materials | Garrison activated, responded to threat 3066 | -8/Materials | Lost 9 parts (2p4n1u2w) 3329 | -8/Materials | Core integrity fell below 50% 3350 | -8/Materials | Build established: Scavenger-Mutant 3426 | -8/Materials | Discovered new exit (range 4) 3465 | -8/Materials | Entered Factory 3465 | -7/Factory | Evolved 2 slots: Propulsion x1, Utility x1 3610 | -7/Factory | Discovered new exit (range 16) 3614 | -7/Factory | Identified exit to Factory 3614 | -7/Factory | Entered another Factory area 3614 | -6/Factory | Evolved 2 slots: Utility x2 3921 | -6/Factory | Build established: Hacker-Scout 4722 | -6/Factory | Manually triggered Chute Trap 4722 | -6/Factory | Sucked down chute 4722 | -6/Factory | Entered Waste 4723 | -6/Waste | Met a frightened Derelict 4730 | -6/Waste | Spotted C-40 Crusher 4737 | -6/Waste | EMP discharged 4751 | -6/Waste | Spotted C-40 Crusher 4751 | -6/Waste | Spotted C-40 Crusher 4769 | -6/Waste | Spotted C-40 Crusher 4775 | -6/Waste | Spotted C-40 Crusher 4780 | -6/Waste | Spotted C-40 Crusher 4781 | -6/Waste | Discovered new exit (range 13) 4791 | -6/Waste | Identified exit to Factory 4792 | -6/Waste | Entered Factory 4831 | -6/Factory | Spotted B-75 Beast 5441 | -6/Factory | Discovered new exit (range 18) 5448 | -6/Factory | Identified exit to Factory 5448 | -6/Factory | Entered another Factory area 5448 | -5/Factory | Evolved 2 slots: Power x1, Utility x1 5475 | -5/Factory | Discovered new exit (range 13) 5481 | -5/Factory | Identified exit to Factory 5481 | -5/Factory | Entered another Factory area 5481 | -4/Factory | Evolved 2 slots: Propulsion x1, Utility x1 5507 | -4/Factory | Identified exit to Upper Caves 5507 | -4/Factory | Identified exit to Extension 5507 | -4/Factory | Identified exit to Research 5812 | -4/Factory | Entered Research 5812 | -3/Research | Evolved 2 slots: Propulsion x1, Utility x1 5842 | -3/Research | Lost 4 parts (1n1u2w) 5930 | -3/Research | Identified exit to Armory 5930 | -3/Research | Identified exit to Quarantine 6187 | -3/Research | Lost 4 parts (2n2u) 6230 | -3/Research | Entered Quarantine 6244 | -3/Quarantine | Identified exit to Research 6264 | -3/Quarantine | Found Alien Slashing Weapon 6269 | -3/Quarantine | Entered Research 6269 | -2/Research | Evolved 2 slots: Propulsion x1, Utility x1 6305 | -2/Research | Identified Sigix Broadsword 6310 | -2/Research | Identified exit to Testing 6401 | -2/Research | Spotted B-90 Cyclops 6443 | -2/Research | Released all parts (12) 6460 | -2/Research | Core integrity fell below 50% 6468 | -2/Research | Lost 6 parts (1p2n2u1w) 6473 | -2/Research | Core integrity fell below 20% 6510 | -2/Research | Destroyed by S-43 Plague with Heavy Machine Gun Last Messages --------------- 06443_ Released Hacking Suite. 06443_ Released Enh. Optical Array. 06443_ Released Imp. Signal Interpreter. 06443_ Released Impulse Thruster Array. 06443_ Released Thermal Shield. 06443_ W-44 Eye sends out distress signal. 06444_ Penetrated by Slug. 06444_ Slug penetrates Wall. 06444_ U-05 Engineer destroyed. 06473_ Force Lance severed. 06474_ Acquired Force Lance. 06485_ Force Lance severed. 06488_ Acquired Force Lance. 06496_ C-57 Dissector destroyed. 06496_ Force Lance severed. 06497_ Acquired 42 matter. 06499_ Acquired Force Lance. 06501_ C-57 Dissector suffers critical hit (Impale). 06501_ Destroyed Adv. Reaction Control System. 06505_ C-57 Dissector destroyed. Map ----- +----------------------------------------------------+ | ??????????????????????????# #???? | | ??????????????????????????# """ !! #???? | | ??????????????????????????# """ != #? ?? | | ??????????????????????????+ """ ! #? ?? | | ??????????????????????????# #???? | | ??????????????????????????# +???? | | ??????????????????????????# ] #???? | | ??????????????????????????# """ """ #???? | | ??????????????????????????# """ """ #?? ? | | ??????????????????????????# """ """ #???? | | ??????????????############# #???? | | ????????????# # #??#? | | ????????????# " #???? | | ????????????# # ##############????? | | ????????????# # #???##????????????? | | ????????????# """ """ ?# #?? ????????????? | | ????????????????""G""" ?# #? ?????????????? | | ???????????????????#####??# # ??????????????? | | ?????????????????########## h# ?????????????### | | ?????????????????? # h/ ??????????????# | | ??????????????????? # #???????????????# | | ???????????????????"""" # s #????? ?????????# | | ????????????????""""""" #s ########?######?# | | ?????????????# """"""" =#s #?# | | ?????????????# %s] #?# | | ?????????????# @# #?### | | ?????????????# """"""" # #???? | | ????????????????""""""" ####+########## #???? | | ???????????????????"""" #?????????????# #???? | | ??????????????????? #?????????????# #?### | | ?????????????????? #?????????????# #?# | | ?????????????????##########????????????## #?# | | ????????????????????????????????????????# ### | | ????????????????????????????????????????# #?# | | ????????????????????????????????????????# #?# | | ????????????????????????????????????????# #?# | | ???????????????????????????????????????## ### | | ???????????????????????????????########## | | ???????????????????????????????# # | | ???????????????????????#???????# # | | ??????????????????????????#??#?#"" + "" | | ???????????????????????????????#"" # """ | | ???????????????????????????????#"T # T" | | ???????????????????????????????#"" # """ | | ???????????????????????????????#"" # "" | | ???????????????????????????????# # | | ???????????????????????????????# # | | ???????????????????????#???????########## | | ?????????????????????????????????????#??######## | | ???????????????????????????????????????????????# | +----------------------------------------------------+ Best States ------------- Heat Dissipation 49 Energy Generation 36 Energy Capacity 500 Matter Stores 300 Matter Capacity 300 Sight Range 22 Robot Scan Range 15 Terrain Scan Range 24 Terrain Scan Density 10 Armor Coverage 150 Resistance: TH 20 Evasion (%) 75 Offensive Hacking 42 Item Schematics ----------------- Hacking Suite | -9/Materials | Scanalyzed Robot Schematics ------------------ None Fabricated ------------ Nothing Alien Tech Used ----------------- Sigix Broadsword Achievements -------------- Alien Tech Dodgeball, But With Guns Wheee! Challenges ------------ None Game ------ Seed CoreRemoteField Manual? 0 Play Time 01:44:30 Cumulative 48.4 hours Start 2023.03.29 @ 17:39:27 End 2023.03.29 @ 20:22:07 Sessions 3 Manual Loads 0 Difficulty Rogue Special Mode None Game No. 68 Rogue 68 Adventurer 0 Explorer 0 Win Type - Total 0 Types 0/0/0/0/0/0/0/0/0 Lore% 35 Gallery% 36 Achievement% 33 Wizard Run 0 Options --------- ASCII 0 Keyboard 0 Movement Arrows Keybinds 0 Fullscreen 1 Font 12/Smallcaps Map View 83x54 Tactical HUD 1 Map Filters NONE Filters NONE Steam 1 RUN: d7392b31-688f-47b1-9773-cd9d05bd2625